bitfinex/quotes_BTCUSD_20260310
["timestamp","ask_amount","ask_price","bid_price","bid_amount"]
[1773134330086,0.33246838,70925.0,70908.0,0.18462974]
[1773134330294,0.071936,70926.0,70912.0,0.07050912]
[1773134330466,0.071936,70926.0,70916.0,0.03408278]
[1773134330682,0.071936,70926.0,70916.0,0.41345104]
[1773134331245,0.00144,70925.0,70916.0,0.41345104]
[1773134333002,0.03,70923.0,70916.0,0.41345104]
[1773134333524,0.07049799,70924.0,70923.0,0.00498298]
[1773134333680,0.06551501,70924.0,70914.0,0.37936826]
[1773134333882,0.06551501,70924.0,70914.0,0.41345104]
[1773134334106,0.06551501,70924.0,70914.0,0.37936826]
[1773134334308,0.39438251,70924.0,70909.0,0.4920441]
[1773134334688,0.39438251,70924.0,70909.0,0.562557]
[1773134334884,0.39438251,70924.0,70907.0,0.11253018]
[1773134335105,0.39438251,70924.0,70904.0,0.37936826]
[1773134335308,0.39438251,70924.0,70906.0,0.37936826]
[1773134336219,0.03,70919.0,70906.0,0.37936826]
[1773134336647,0.00144,70918.0,70906.0,0.37936826]
[1773134337042,0.03,70915.0,70906.0,0.37936826]
[1773134337187,0.03,70915.0,70907.0,0.01846646]
[1773134337387,0.03,70915.0,70901.0,0.16901377]
[1773134337591,0.03144,70915.0,70902.0,0.37936826]
[1773134337802,0.03144,70915.0,70902.0,0.54838203]
[1773134338018,0.03144,70915.0,70902.0,0.39783472]
[1773134338217,0.03144,70915.0,70902.0,0.56684849]
[1773134338533,0.03144,70915.0,70903.0,0.37936826]
[1773134339157,0.03,70913.0,70903.0,0.37936826]
[1773134340202,0.03,70913.0,70904.0,0.39783472]
[1773134340570,0.03144,70916.0,70907.0,0.01846646]
[1773134340906,0.07050265,70920.0,70912.0,0.37936826]
[1773134341110,0.07050265,70920.0,70912.0,0.39783472]
[1773134341529,0.07194265,70920.0,70912.0,0.39768825]
[1773134341725,0.03,70919.0,70912.0,0.39768825]
[1773134344036,0.03,70917.0,70912.0,0.39790825]
[1773134344774,0.03,70917.0,70912.0,0.00022]
[1773134345961,0.20933065,70914.0,70900.0,0.16946377]
[1773134346143,0.03,70907.0,70893.0,0.00144]
[1773134346333,0.00144,70906.0,70894.0,0.07052759]
[1773134346558,0.00144,70906.0,70893.0,0.07052851]
[1773134346965,0.00144,70906.0,70892.0,0.86637901]
[1773134347161,0.00144,70906.0,70893.0,0.07052869]
[1773134347388,0.03144,70906.0,70900.0,0.37816481]
[1773134347591,0.03244,70906.0,70899.0,0.00022]
[1773134347764,0.03144,70906.0,70899.0,0.00022]
[1773134347963,0.03,70904.0,70899.0,0.00022]
[1773134348224,0.03,70904.0,70899.0,0.37838481]
[1773134350080,0.03,70902.0,70899.0,0.37838481]
[1773134352275,0.10052043,70902.0,70899.0,0.37838481]
[1773134353241,0.07038089,70902.0,70899.0,0.37838481]
[1773134353666,0.07020499,70902.0,70899.0,0.37838481]
[1773134353895,0.03,70904.0,70899.0,0.37838481]
[1773134354195,0.03,70904.0,70901.0,0.37816481]
[1773134354399,0.10051797,70904.0,70901.0,0.37816481]
[1773134354596,0.03,70904.0,70901.0,0.37816481]
[1773134354803,0.0705139,70908.0,70901.0,0.37816481]
[1773134355009,0.03,70907.0,70901.0,0.37816481]
[1773134355215,0.03,70907.0,70892.0,0.00022]
[1773134355423,0.23553197,70901.0,70884.0,0.00022]
[1773134355596,0.23553197,70901.0,70885.0,0.0707567]
[1773134355808,0.23553197,70901.0,70885.0,0.00022]
[1773134356188,0.23553197,70901.0,70885.0,0.37838481]
[1773134356385,0.03,70899.0,70885.0,0.4489215]
[1773134356621,0.03,70899.0,70888.0,0.01595189]
[1773134356831,0.07052186,70900.0,70892.0,0.01595189]
[1773134357039,0.07051144,70911.0,70895.0,0.37816481]
[1773134357259,0.07051144,70911.0,70896.0,0.01595189]
[1773134357260,0.07051191,70910.0,70896.0,0.01595189]
[1773134357455,0.07051191,70910.0,70897.0,0.37816481]
[1773134357456,0.03,70909.0,70897.0,0.37816481]
[1773134358245,0.03,70909.0,70899.0,0.05306891]
[1773134358494,0.03,70907.0,70900.0,0.3941167]
[1773134359200,0.03,70907.0,70900.0,0.37816481]
[1773134359403,0.03,70907.0,70901.0,0.3941167]
[1773134359751,0.03,70907.0,70901.0,0.37816481]
[1773134360892,0.03,70905.0,70901.0,0.37816481]
[1773134362205,0.07051589,70906.0,70901.0,0.37816481]
[1773134362612,0.07051589,70906.0,70895.0,0.07052664]
[1773134363509,0.03,70904.0,70888.0,0.07053379]
[1773134363803,0.03,70902.0,70888.0,0.46465049]
[1773134364206,0.03,70902.0,70890.0,0.37816481]
[1773134364363,0.03,70902.0,70890.0,0.3941167]
[1773134364705,0.03,70899.0,70887.0,0.00022]
[1773134364917,0.03,70899.0,70888.0,0.37816481]
[1773134365234,0.03,70899.0,70888.0,0.3941167]
[1773134365657,0.03,70897.0,70888.0,0.3941167]
[1773134367204,0.03,70897.0,70887.0,0.00022]
[1773134367628,0.03,70895.0,70887.0,0.00022]
[1773134369336,0.03,70893.0,70885.0,0.00022]
[1773134369921,0.03,70891.0,70885.0,0.00022]
[1773134370534,0.03,70891.0,70880.0,0.00562]
[1773134370739,0.03,70891.0,70881.0,0.3941167]
[1773134371880,0.03,70889.0,70881.0,0.3941167]
[1773134372053,0.03,70889.0,70881.0,0.4646571]
[1773134372690,0.03,70889.0,70881.0,0.44870521]
[1773134372978,0.03,70889.0,70887.0,0.00022]
[1773134373543,0.03,70889.0,70884.0,0.37816481]
[1773134373544,0.03,70889.0,70880.0,0.00562]
[1773134374187,0.03,70887.0,70880.0,0.00562]
[1773134375206,0.29208721,70887.0,70871.0,0.87784635]
[1773134375470,0.29208721,70887.0,70871.0,0.80729572]
[1773134375677,0.29208721,70887.0,70871.0,0.36593324]
[1773134376325,0.03,70885.0,70877.0,0.01595189]
[1773134376808,0.07053379,70889.0,70873.0,0.07054861]
[1773134376809,0.07052624,70896.0,70881.0,0.01595189]
[1773134377010,0.07052624,70896.0,70875.0,0.07077667]
[1773134377011,0.33216135,70895.0,70875.0,0.00023]
[1773134377420,0.03,70892.0,70876.0,0.38188513]
[1773134377594,0.36314642,70892.0,70877.0,0.01595189]
[1773134377802,0.36314642,70892.0,70878.0,0.36593324]
[1773134378158,0.03,70890.0,70879.0,0.01595189]
[1773134378487,0.03,70890.0,70883.0,0.38188513]
[1773134379655,0.36450408,70914.0,70885.0,0.36593324]
[1773134379874,0.01246772,70919.0,70901.0,0.01595189]
[1773134380064,0.43550504,70920.0,70912.0,0.36593324]
[1773134380065,0.07050249,70920.0,70912.0,0.36593324]
[1773134380270,0.0002,70924.0,70914.0,0.36593324]
[1773134380271,0.07050072,70922.0,70914.0,0.36593324]
[1773134380470,0.07050072,70922.0,70914.0,0.38188513]
[1773134380678,0.03,70921.0,70914.0,0.38188513]
[1773134381097,0.03,70921.0,70909.0,0.07051234]
[1773134381274,0.03,70921.0,70907.0,0.07051433]
[1773134381275,0.39450408,70921.0,70907.0,0.07051433]
[1773134381418,0.39450408,70921.0,70907.0,0.43644757]
[1773134381833,0.03,70921.0,70910.0,0.01595189]
[1773134382038,0.03,70921.0,70911.0,0.38188513]
[1773134382258,0.03,70919.0,70911.0,0.45239523]
[1773134383301,0.03,70919.0,70911.0,0.38188513]
[1773134383503,0.03,70919.0,70900.0,0.0705215]
[1773134383701,0.03,70915.0,70900.0,0.43645474]
[1773134383899,0.03,70915.0,70901.0,0.38188513]
[1773134384255,0.07050197,70920.0,70903.0,0.36593324]
[1773134384432,0.07050197,70922.0,70903.0,0.36593324]
[1773134384433,0.07050197,70922.0,70908.0,0.36593324]
[1773134384636,0.07050197,70922.0,70910.0,0.36593324]
[1773134384848,0.07050197,70922.0,70913.0,0.01595189]
[1773134385051,0.07050197,70922.0,70913.0,0.38188513]
[1773134385247,0.03,70921.0,70914.0,0.38188513]
[1773134386211,0.07069899,70924.0,70914.0,0.36593324]
[1773134386413,0.07069899,70924.0,70903.0,0.07051788]
[1773134386414,0.07069899,70924.0,70916.0,0.36593324]
[1773134387414,0.03,70922.0,70916.0,0.36593324]
[1773134387613,0.03,70922.0,70916.0,0.38188513]
[1773134388988,0.07050097,70921.0,70916.0,0.36593324]
[1773134389195,0.03,70920.0,70917.0,0.37741336]
[1773134389542,0.03,70920.0,70918.0,0.01595189]
[1773134390616,0.03,70922.0,70919.0,0.36146147]
[1773134390834,0.07069815,70924.0,70919.0,0.36146147]
[1773134391027,0.07069815,70924.0,70919.0,0.37741336]
[1773134391596,0.03,70923.0,70911.0,0.36146147]
[1773134391803,0.03,70923.0,70914.0,0.01595189]
[1773134392013,0.03,70923.0,70914.0,0.37741336]
[1773134392420,0.03,70923.0,70908.0,0.07051382]
[1773134392647,0.03,70923.0,70909.0,0.00797594]
[1773134392844,0.03,70923.0,70909.0,0.36146147]
[1773134393050,0.03,70923.0,70910.0,0.36146147]
[1773134393219,0.03,70923.0,70911.0,0.36943741]
[1773134393793,0.03,70921.0,70911.0,0.439948]
[1773134394409,0.07069998,70922.0,70911.0,0.36943741]
[1773134394813,0.07069998,70922.0,70911.0,0.36146147]
[1773134394960,0.42641991,70922.0,70911.0,0.36146147]
[1773134395161,0.42641991,70922.0,70894.0,0.00797594]
[1773134395368,0.03,70919.0,70897.0,0.36146147]
[1773134395575,0.03,70913.0,70899.0,0.43996002]
[1773134395770,0.38571993,70913.0,70899.0,0.43996002]
[1773134396202,0.38571993,70913.0,70890.0,0.22970257]
[1773134396203,0.38571993,70913.0,70893.0,0.36146147]
[1773134396402,0.38571993,70913.0,70894.0,0.00797594]
[1773134396854,0.38571993,70913.0,70894.0,0.36943741]
[1773134397057,0.38571993,70913.0,70890.0,0.07053127]
[1773134397516,0.38571993,70913.0,70889.0,0.07850832]
[1773134397723,0.03,70907.0,70889.0,0.00793174]
[1773134397940,0.03,70903.0,70889.0,0.00793174]
[1773134398105,0.03,70903.0,70890.0,0.36146147]
[1773134398310,0.03,70903.0,70891.0,0.36941531]
[1773134399184,0.03,70898.0,70891.0,0.0001836]
[1773134399354,0.38571993,70896.0,70886.0,0.0002484]
[1773134399597,0.03,70896.0,70887.0,0.07053479]
[1773134399802,0.07050992,70912.0,70887.0,0.07053479]
[1773134399803,0.0705139,70908.0,70891.0,0.00795384]
[1773134400001,0.0705139,70908.0,70894.0,0.36146147]
[1773134400212,0.35571993,70907.0,70894.0,0.36941531]
[1773134400595,0.38571993,70906.0,70886.0,0.0002484]
[1773134401037,0.38571993,70906.0,70887.0,0.36146147]
[1773134401232,0.38571993,70906.0,70889.0,0.36941531]
[1773134401436,0.38571993,70906.0,70890.0,0.00022]
[1773134401637,0.03,70904.0,70890.0,0.00022]
[1773134401981,0.03,70900.0,70886.0,0.0002484]
[1773134402192,0.03,70896.0,70886.0,0.0002484]
[1773134402415,0.35571993,70897.0,70886.0,0.0002484]
[1773134403678,0.07052584,70896.0,70886.0,0.0002484]
[1773134404709,0.03,70894.0,70886.0,0.0002484]
[1773134404908,0.03,70892.0,70882.0,0.00022]
[1773134405699,0.03,70892.0,70874.0,0.00795384]
[1773134405700,0.35375035,70889.0,70874.0,0.00795384]
[1773134405873,0.03,70886.0,70871.0,0.00022]
[1773134406062,0.03,70882.0,70871.0,0.00022]
[1773134407553,0.38375035,70881.0,70868.0,0.36648725]
[1773134407893,0.38375035,70879.0,70867.0,0.00022]
[1773134408880,0.03,70879.0,70869.0,0.00493631]
[1773134409083,0.03,70879.0,70870.0,0.37142356]
[1773134409284,0.03,70879.0,70875.0,0.00022]
[1773134409870,0.07054058,70883.0,70877.0,0.36648725]
[1773134410080,0.07054176,70881.0,70878.0,0.36648725]
[1773134410255,0.07054058,70883.0,70879.0,0.00495135]
[1773134410631,0.35375035,70892.0,70879.0,0.00480483]
[1773134410632,0.07053228,70890.0,70879.0,0.00480483]
[1773134410845,0.07053228,70890.0,70882.0,0.36648725]
[1773134410972,0.0705284,70894.0,70885.0,0.00495135]
[1773134411186,0.0705284,70894.0,70886.0,0.00495135]
[1773134412004,0.03,70896.0,70886.0,0.00495135]
[1773134413664,0.031,70896.0,70886.0,0.00495135]
[1773134413881,0.032,70896.0,70886.0,0.00495135]
[1773134414873,0.03,70894.0,70886.0,0.00480487]
[1773134415412,0.03,70894.0,70887.0,0.36648725]
[1773134415615,0.03,70894.0,70884.0,0.00495135]
[1773134415760,0.03,70894.0,70884.0,0.36648725]
[1773134416164,0.031,70894.0,70884.0,0.3714386]
[1773134416363,0.03,70890.0,70875.0,1e-08]
[1773134416616,0.00059922,70884.0,70867.0,0.07572594]
[1773134416816,0.03,70880.0,70867.0,0.07572594]
[1773134417029,0.03,70878.0,70868.0,0.00495135]
[1773134417229,0.07054176,70880.0,70872.0,0.00495135]
[1773134417540,0.07054176,70880.0,70874.0,0.00495135]
[1773134417742,0.07054176,70880.0,70874.0,0.3714386]
[1773134418086,0.03,70879.0,70875.0,0.00495135]
[1773134418286,0.03,70879.0,70875.0,0.00480486]
[1773134419110,0.10054375,70878.0,70875.0,0.00480486]
[1773134419594,0.10054375,70878.0,70875.0,0.37129211]
[1773134419790,0.10054375,70878.0,70871.0,0.00495135]
[1773134420125,0.07054175,70881.0,70872.0,0.00495135]
[1773134420321,0.07075248,70900.0,70876.0,0.36648725]
[1773134420661,0.07075248,70900.0,70881.0,0.00495135]
[1773134420848,0.42450283,70900.0,70884.0,0.36648725]
[1773134421067,0.42450283,70900.0,70885.0,0.00495135]
[1773134421266,0.42450283,70900.0,70873.0,0.07054872]
[1773134421267,0.03,70899.0,70887.0,0.00495135]
[1773134421444,0.03,70899.0,70890.0,0.36634081]
[1773134421649,0.03,70899.0,70891.0,0.3714386]
[1773134422246,0.03,70897.0,70891.0,0.3714386]
[1773134423902,0.07405248,70900.0,70891.0,0.4370178]
[1773134424105,0.07405248,70900.0,70891.0,0.44196915]
[1773134424275,0.00353,70900.0,70891.0,0.44196915]
[1773134424626,0.00353,70900.0,70892.0,0.00495135]
[1773134424840,0.07405192,70900.0,70892.0,0.3714386]
[1773134425063,0.03,70899.0,70892.0,0.3714386]
[1773134426022,0.03,70899.0,70888.0,0.43702056]
[1773134426242,0.03,70897.0,70888.0,0.43702056]
[1773134427871,0.03,70897.0,70888.0,0.43702066]
[1773134429216,0.10052504,70897.0,70888.0,0.43702066]
[1773134429391,0.10052504,70897.0,70888.0,0.43687419]
[1773134430843,0.45427539,70897.0,70886.0,0.07075379]
[1773134431044,0.10052504,70897.0,70886.0,0.43724104]
[1773134431264,0.10052504,70897.0,70887.0,0.00495135]
[1773134431633,0.07052429,70898.0,70892.0,0.36648725]
[1773134431828,0.07052429,70898.0,70892.0,0.3663408]
[1773134432101,0.07052429,70898.0,70892.0,0.36604787]
[1773134432304,0.0707647,70906.0,70888.0,0.36648725]
[1773134432505,0.0707647,70906.0,70886.0,0.07075379]
[1773134432506,0.076134,70908.0,70891.0,0.00495135]
[1773134432861,0.076134,70908.0,70896.0,0.36648725]
[1773134433062,0.076134,70908.0,70898.0,0.36648725]
[1773134433063,0.00562,70908.0,70898.0,0.36648725]
[1773134433185,0.00562,70908.0,70901.0,0.3714386]
[1773134433387,0.03,70907.0,70901.0,0.3714386]
[1773134434515,0.03,70906.0,70901.0,0.3714386]
[1773134434919,0.0002094,70910.0,70903.0,0.35379198]
[1773134435118,0.0002094,70910.0,70903.0,0.35874333]
[1773134435456,0.07072145,70910.0,70903.0,0.35379198]
[1773134435661,0.03,70909.0,70902.0,0.07051947]
[1773134435918,0.03,70909.0,70903.0,0.35379198]
[1773134437474,0.39757071,70906.0,70887.0,0.07053479]
[1773134437643,0.00486857,70899.0,70883.0,0.42950186]
[1773134437847,0.00486857,70897.0,70883.0,0.00022]
[1773134438053,0.03,70890.0,70883.0,0.00022]
[1773134439170,0.00486857,70893.0,70883.0,0.00022]
[1773134439395,0.03,70888.0,70883.0,0.00022]
[1773134440007,0.03,70888.0,70883.0,7.349e-05]
[1773134440355,0.03,70886.0,70880.0,0.00562]
[1773134440528,0.03,70886.0,70880.0,0.07616174]
[1773134440890,0.03,70886.0,70880.0,0.42995372]
[1773134441333,0.03,70889.0,70880.0,0.42995372]
[1773134442312,0.03,70891.0,70880.0,0.42995372]
[1773134442612,0.07052673,70896.0,70880.0,0.42995372]
[1773134443380,0.03,70897.0,70878.0,0.00022]
[1773134443585,0.03,70886.0,70878.0,0.00022]
[1773134443720,0.01363613,70881.0,70865.0,0.35379198]
[1773134443940,0.03,70880.0,70865.0,0.35379198]
[1773134445164,0.04363613,70880.0,70865.0,0.35379198]
[1773134445735,0.03,70878.0,70867.0,0.35379198]
[1773134445939,0.03,70876.0,70866.0,0.07055569]
[1773134446099,0.0705365,70886.0,70867.0,0.35379198]
[1773134446303,0.08417263,70886.0,70867.0,0.35379198]
[1773134446495,0.08417263,70886.0,70867.0,0.35364547]
[1773134446697,0.0705365,70886.0,70867.0,0.35364547]
[1773134446900,0.03,70884.0,70867.0,0.35364547]
[1773134447291,0.07073412,70888.0,70867.0,0.35364547]
[1773134447684,0.07073412,70888.0,70869.0,0.35379198]
[1773134447919,0.03,70887.0,70869.0,0.35379198]
[1773134448320,0.00137819,70891.0,70868.0,0.0705537]
[1773134448498,0.07052985,70892.0,70869.0,0.35379198]
[1773134448701,0.07052985,70892.0,70869.0,0.35479198]
[1773134448912,0.03,70891.0,70869.0,0.35479198]
[1773134449090,0.00137819,70890.0,70869.0,0.35479198]
[1773134449289,0.36757071,70888.0,70869.0,0.35479198]
[1773134449490,0.07053578,70886.0,70870.0,0.07055171]
[1773134449736,0.00137819,70885.0,70871.0,0.35379198]
[1773134449942,0.03,70883.0,70869.0,0.07055262]
[1773134450168,0.03,70877.0,70867.0,0.0707727]
[1773134450305,0.04363613,70875.0,70867.0,0.07077455]
[1773134451350,0.04363613,70875.0,70867.0,0.07177455]
[1773134451578,0.04363613,70875.0,70867.0,0.07077455]
[1773134453693,0.03,70875.0,70867.0,0.07077455]
[1773134453887,0.03,70873.0,70867.0,0.07077455]
[1773134455124,0.03,70872.0,70867.0,0.07077455]
[1773134455322,0.03,70870.0,70867.0,0.07077455]
[1773134456311,0.03,70874.0,70865.0,0.0705564]
[1773134456526,0.03,70874.0,70862.0,0.07077927]
[1773134456527,0.03,70870.0,70862.0,0.00022]
[1773134456704,0.07054617,70876.0,70856.0,0.07056546]
[1773134456705,0.03,70862.0,70856.0,0.07056546]
[1773134458262,0.03,70862.0,70856.0,0.07156546]
[1773134458568,0.03,70862.0,70859.0,0.00022]
[1773134458768,0.03,70862.0,70859.0,7.354e-05]
[1773134459073,0.03,70865.0,70859.0,7.354e-05]
[1773134459279,0.03,70865.0,70859.0,0.36906133]
[1773134459777,0.08418784,70870.0,70859.0,0.36906133]
[1773134459949,0.07054872,70873.0,70860.0,0.07056167]
[1773134460141,0.28063447,70913.0,70860.0,0.07056167]
[1773134460142,0.01363613,70876.0,70861.0,0.36898779]
[1773134460332,0.01363613,70881.0,70863.0,0.36898779]
[1773134460562,0.01501432,70881.0,70863.0,0.36898779]
[1773134461459,0.00137819,70882.0,70863.0,0.36898779]
[1773134461654,0.07075225,70900.0,70871.0,0.36898779]
[1773134461867,0.01363613,70899.0,70871.0,0.36898779]
[1773134462067,0.07052385,70898.0,70872.0,0.07054972]
[1773134462240,0.03,70897.0,70873.0,0.36898779]
[1773134463100,0.03,70898.0,70873.0,0.36898779]
[1773134463304,0.07051842,70904.0,70881.0,0.36898779]
[1773134464072,0.34120472,70900.0,70882.0,0.07053977]
[1773134464282,0.03,70897.0,70883.0,0.33977853]
[1773134464489,0.0841464,70912.0,70883.0,0.33977853]
[1773134464828,0.07081232,70910.0,70883.0,0.33977853]
[1773134465454,0.03,70909.0,70883.0,0.33977853]
[1773134466070,0.1005132,70909.0,70885.0,0.33977853]
[1773134466772,0.03,70909.0,70885.0,0.33977853]
[1773134467324,0.03,70909.0,70885.0,0.34077853]
[1773134467937,0.0003001,70910.0,70885.0,0.001]
[1773134468116,0.0303001,70910.0,70887.0,0.07053479]
[1773134468320,0.0303001,70910.0,70888.0,0.33977853]
[1773134468884,0.10081254,70910.0,70888.0,0.33977853]
[1773134469157,0.0303001,70910.0,70891.0,0.33977853]
[1773134469466,0.0003001,70910.0,70891.0,0.33977853]
[1773134470299,0.0003001,70910.0,70893.0,0.33977853]
[1773134470501,0.0013001,70910.0,70893.0,0.33977853]
[1773134470922,0.0003001,70910.0,70893.0,0.33977853]
[1773134471734,0.14001078,70915.0,70893.0,0.33977853]
[1773134471940,0.00048,70916.0,70893.0,0.33977853]
[1773134472327,0.00048,70916.0,70895.0,0.33977853]
[1773134472721,0.03048,70916.0,70895.0,0.33977853]
[1773134473353,0.03048,70916.0,70895.0,0.34077853]
[1773134473778,0.03,70915.0,70895.0,0.34077853]
[1773134473978,0.0119222,70914.0,70895.0,0.33977853]
[1773134474217,0.03,70911.0,70897.0,0.33977853]
[1773134474421,0.03,70911.0,70898.0,0.07052385]
[1773134474729,0.03,70911.0,70899.0,0.33977853]
[1773134475145,0.03,70909.0,70899.0,0.33977853]
[1773134475689,0.2105218,70911.0,70898.0,0.07052385]
[1773134475690,0.03,70905.0,70898.0,0.07052385]
[1773134475885,0.0419222,70905.0,70898.0,0.07052385]
[1773134476562,0.03,70903.0,70894.0,0.07052783]
[1773134476729,0.03,70901.0,70894.0,0.07052783]
[1773134480475,0.03,70898.0,70891.0,0.07053081]
[1773134480673,0.03,70894.0,70883.0,0.07053792]
[1773134481027,0.0119222,70895.0,70884.0,0.33977853]
[1773134481850,0.0119222,70895.0,70885.0,0.00144]
[1773134482083,0.0119222,70895.0,70886.0,0.33977853]
[1773134482803,0.03,70892.0,70882.0,0.07197962]
[1773134483011,0.03,70892.0,70882.0,0.41175815]
[1773134483453,0.03,70892.0,70883.0,0.06]
[1773134483675,0.03,70892.0,70884.0,0.33977853]
[1773134483913,0.03,70893.0,70884.0,0.33977853]
[1773134484766,0.03,70893.0,70885.0,0.07053678]
[1773134485199,0.03,70892.0,70884.0,0.41031531]
[1773134485401,0.03,70890.0,70884.0,0.07053678]
[1773134486427,0.03,70890.0,70885.0,0.00144]
[1773134486647,0.07196368,70899.0,70886.0,0.33977853]
[1773134486648,0.03,70889.0,70886.0,0.33977853]
[1773134487007,0.03,70889.0,70887.0,0.07053479]
[1773134487544,0.01119936,70895.0,70887.0,0.07053479]
[1773134487750,0.03,70894.0,70887.0,0.07053479]
[1773134488158,0.04119936,70894.0,70887.0,0.07053479]
[1773134488653,0.03,70895.0,70887.0,0.07053479]
[1773134488802,0.04119936,70893.0,70887.0,0.07053479]
[1773134489164,0.03,70893.0,70886.0,0.07053578]
[1773134489367,0.03,70893.0,70886.0,0.41031431]
[1773134489922,0.03,70892.0,70886.0,0.41031431]
[1773134490392,0.03,70892.0,70885.0,0.00166]
[1773134490593,0.03,70886.0,70884.0,0.07053678]
[1773134490792,0.01119936,70897.0,70884.0,0.07053678]
[1773134491171,0.07052532,70897.0,70884.0,0.41031531]
[1773134491498,0.01119936,70896.0,70884.0,0.41031531]
[1773134491641,0.04119936,70893.0,70884.0,0.41031531]
[1773134491843,0.03,70893.0,70884.0,0.41031531]
[1773134492086,0.04119936,70891.0,70884.0,0.07197678]
[1773134492288,0.07052484,70900.0,70884.0,0.07197678]
[1773134492289,0.07050802,70914.0,70884.0,0.07053678]
[1773134492448,0.34120472,70910.0,70886.0,0.33977853]
[1773134492642,0.01119936,70907.0,70886.0,0.33977853]
[1773134492910,0.01119936,70904.0,70886.0,0.33977853]
[1773134493047,0.03,70897.0,70886.0,0.33977853]
[1773134493244,0.03,70897.0,70888.0,0.07053379]
[1773134493452,0.03,70895.0,70888.0,0.07053379]
[1773134494410,0.34120472,70899.0,70888.0,0.07053379]
[1773134494639,0.00559968,70903.0,70889.0,0.34550681]
[1773134495230,0.00144,70907.0,70887.0,0.07197379]
[1773134495231,0.00394001,70960.0,70921.0,0.07050097]
[1773134495432,0.00394001,70960.0,70946.0,0.575452]
[1773134495433,0.00559968,70957.0,70946.0,0.575452]
[1773134495657,0.33391534,70954.0,70946.0,0.575452]
[1773134495857,0.00559968,70952.0,70946.0,0.575452]
[1773134496014,0.07440323,70960.0,70925.0,0.00023]
[1773134496015,0.00394001,70960.0,70947.0,0.14073935]
[1773134496215,0.00394001,70960.0,70949.0,0.34550681]
[1773134496419,0.0002276,70961.0,70955.0,0.575452]
[1773134496800,0.00456603,70966.0,70955.0,0.575452]
[1773134497032,0.4342016,70981.0,70955.0,0.575452]
[1773134497033,0.00144,70990.0,70971.0,0.575452]
[1773134497229,0.33391534,70986.0,70955.0,0.34550681]
[1773134497429,0.33391534,70986.0,70959.0,0.07046123]
[1773134497670,0.33391534,70986.0,70966.0,0.575452]
[1773134498046,0.03,70983.0,70966.0,0.575452]
[1773134498220,0.03,70979.0,70966.0,0.575452]
[1773134498419,0.03,70977.0,70966.0,0.575452]
[1773134498620,0.00144,70976.0,70966.0,0.575452]
[1773134499256,0.03,70972.0,70956.0,0.41597301]
[1773134499433,0.36391534,70970.0,70961.0,0.00144]
[1773134499809,0.36391534,70970.0,70956.0,0.41597301]
[1773134500027,0.36391534,70970.0,70957.0,0.00144]
[1773134500412,0.36391534,70970.0,70957.0,0.01371211]
[1773134500634,0.36391534,70970.0,70957.0,0.35921892]
[1773134501004,0.38255773,70977.0,70957.0,0.35921892]
[1773134501005,0.00015,71029.0,70994.0,0.34550681]
[1773134501369,0.00015,71029.0,70992.0,0.00562]
[1773134501370,0.33391534,71024.0,71012.0,0.50087264]
[1773134501578,0.33391534,71024.0,71011.0,0.00144]
[1773134501710,0.40431492,71024.0,71004.0,0.07041856]
[1773134501913,0.40431492,71024.0,71010.0,0.430423]
[1773134502114,0.00015,71029.0,71010.0,0.430423]
[1773134502337,0.00015,71029.0,71013.0,0.34550681]
[1773134502595,0.40445993,71029.0,71013.0,0.34550681]
[1773134503091,0.33406534,71029.0,71014.0,0.00144]
[1773134503252,0.03,71026.0,71015.0,0.07040766]
[1773134503452,0.07054387,71029.0,71015.0,0.07040766]
[1773134503453,0.03,71024.0,71015.0,0.07040766]
[1773134504510,0.07039671,71027.0,71014.0,0.07184766]
[1773134504511,0.03,71021.0,71014.0,0.00144]
[1773134504722,0.03,71021.0,71014.0,0.0718485]
[1773134504920,0.03,71019.0,71005.0,0.07041757]
[1773134505151,0.03,71015.0,71007.0,0.00144]
[1773134505350,0.03,71015.0,71008.0,0.0704146]
[1773134505958,0.03,71015.0,71008.0,0.41592141]
[1773134506251,0.03144,71021.0,71008.0,0.41592141]
[1773134506454,0.36535534,71021.0,71008.0,0.0704146]
[1773134506653,0.03,71019.0,71008.0,0.0704146]
[1773134506865,0.36391534,71019.0,71008.0,0.0704146]
[1773134507427,0.36391534,71019.0,71008.0,0.0714146]
[1773134507965,0.36391534,71019.0,71008.0,0.0704146]
[1773134508145,0.36391534,71019.0,71008.0,0.0714146]
[1773134508978,0.33391534,71016.0,71000.0,0.07065154]
[1773134509303,0.03,71013.0,71002.0,0.34550681]
[1773134509572,0.03144,71013.0,71003.0,0.07041955]
[1773134510159,0.36391534,71012.0,71003.0,0.07041955]
[1773134510327,0.23391534,71012.0,71001.0,0.38272095]
[1773134510528,0.00144,71013.0,71003.0,0.07041955]
[1773134510766,0.00144,71013.0,71002.0,0.07041955]
[1773134510947,0.00144,71013.0,70993.0,0.07042947]
[1773134510948,0.36086702,71012.0,70993.0,0.07042947]
[1773134511585,0.36086702,71012.0,70995.0,0.07042749]
[1773134511754,0.43127811,71012.0,70995.0,0.07042749]
[1773134512165,0.03144,71013.0,70997.0,0.01241532]
[1773134512359,0.03144,71013.0,71002.0,0.001]
[1773134512719,0.10185023,71013.0,71002.0,0.001]
[1773134512907,0.43104871,71013.0,71002.0,0.001]
[1773134513112,0.03,71011.0,71002.0,0.001]
[1773134513528,0.03,71011.0,70998.0,0.37895178]
[1773134514108,0.03,71011.0,70999.0,0.07042352]
[1773134514327,0.03,71011.0,70999.0,0.43695998]
[1773134514733,0.10041187,71011.0,70999.0,0.43695998]
[1773134516586,0.10041187,71011.0,70999.0,0.43717998]
[1773134517455,0.03,71009.0,70999.0,0.07064352]
[1773134519204,0.10041409,71009.0,70999.0,0.07064352]
[1773134520400,0.03,71007.0,70998.0,0.07042451]
[1773134520602,0.00144,71006.0,70998.0,0.07042451]
[1773134521008,0.07040115,71022.0,70996.0,0.08283983]
[1773134521009,0.07040042,71023.0,71002.0,0.07042055]
[1773134521177,0.07040042,71023.0,71006.0,0.01241532]
[1773134521178,0.00144,71018.0,71006.0,0.01241532]
[1773134521375,0.00144,71022.0,71009.0,0.36653646]
[1773134521619,0.00144,71022.0,71019.0,0.36653646]
[1773134521798,0.00144,71022.0,71007.0,0.36653646]
[1773134522134,0.00144,71022.0,71010.0,0.01241532]